[Event "Early-Titled-Tuesday-Blitz-February-27-2024"]
[Site "Chess.com"]
[Date "2024.02.27"]
[Round "8"]
[White "Njal28"]
[Black "DuleMudule"]
[Result "1-0"]
[WhiteElo "3004"]
[BlackElo "2854"]
[TimeControl "180+1"]
[EndTime "9:29:35 PST"]
[Termination "Njal28 won by resignation"]

1. d4 {[%clk 0:02:55.5]} 1... d5 {[%clk 0:03:00]} 2. Nf3 {[%clk 0:02:55.4]} 2...
Bf5 {[%clk 0:03:00]} 3. Bf4 {[%clk 0:02:53.8]} 3... e6 {[%clk 0:02:58.9]} 4. e3
{[%clk 0:02:54.1]} 4... c5 {[%clk 0:02:54.2]} 5. Bxb8 {[%clk 0:02:52.6]} 5...
Rxb8 {[%clk 0:02:50.2]} 6. Bb5+ {[%clk 0:02:52.1]} 6... Ke7 {[%clk 0:02:50.5]}
7. O-O {[%clk 0:02:51.7]} 7... Rc8 {[%clk 0:02:40.7]} 8. Nc3 {[%clk 0:02:39.4]}
8... Nf6 {[%clk 0:02:36]} 9. Ne5 {[%clk 0:02:32.2]} 9... Ne4 {[%clk 0:02:23.9]}
10. Nxe4 {[%clk 0:02:20.3]} 10... Bxe4 {[%clk 0:02:14.5]} 11. Qh5 {[%clk
0:01:55.5]} 11... g6 {[%clk 0:01:59.2]} 12. Qh4+ {[%clk 0:01:55]} 12... f6
{[%clk 0:01:47.5]} 13. Bd3 {[%clk 0:01:52]} 13... Bxd3 {[%clk 0:01:43]} 14. cxd3
{[%clk 0:01:51.3]} 14... Bg7 {[%clk 0:01:43.3]} 15. Nf3 {[%clk 0:01:30.3]} 15...
Kf7 {[%clk 0:01:42.2]} 16. Rac1 {[%clk 0:01:29.1]} 16... Qb6 {[%clk 0:01:40.7]}
17. dxc5 {[%clk 0:01:28.7]} 17... Rxc5 {[%clk 0:01:38]} 18. d4 {[%clk
0:01:29.2]} 18... Rc6 {[%clk 0:01:32.3]} 19. Qf4 {[%clk 0:01:27.4]} 19... Ke7
{[%clk 0:01:30.6]} 20. Rxc6 {[%clk 0:01:24.7]} 20... Qxc6 {[%clk 0:01:25.9]} 21.
e4 {[%clk 0:01:16]} 21... Rc8 {[%clk 0:01:21.9]} 22. e5 {[%clk 0:01:12.9]} 22...
Qc2 {[%clk 0:01:17.9]} 23. exf6+ {[%clk 0:01:07]} 23... Bxf6 {[%clk 0:01:18.8]}
24. Qh6 {[%clk 0:01:04.3]} 24... g5 {[%clk 0:01:05.4]} 25. Nxg5 {[%clk
0:00:35.8]} 25... Qg6 {[%clk 0:01:04.7]} 26. Qxg6 {[%clk 0:00:35.5]} 26... hxg6
{[%clk 0:01:05.6]} 27. Nf3 {[%clk 0:00:35.9]} 27... Rc2 {[%clk 0:01:04.6]} 28.
Rb1 {[%clk 0:00:36.5]} 28... Rc4 {[%clk 0:00:56.3]} 29. Kf1 {[%clk 0:00:32.7]}
29... a5 {[%clk 0:00:49.4]} 30. Ke2 {[%clk 0:00:26.6]} 30... Rc2+ {[%clk
0:00:48.2]} 31. Ke3 {[%clk 0:00:26.3]} 31... Kd6 {[%clk 0:00:41.4]} 32. h4
{[%clk 0:00:24.6]} 32... a4 {[%clk 0:00:36]} 33. a3 {[%clk 0:00:18.8]} 33... b5
{[%clk 0:00:35.1]} 34. g3 {[%clk 0:00:14.6]} 34... Bg7 {[%clk 0:00:27.5]} 35.
Ne1 {[%clk 0:00:12.8]} 35... Rc4 {[%clk 0:00:23.6]} 36. Rd1 {[%clk 0:00:12.9]}
36... b4 {[%clk 0:00:20.3]} 37. f4 {[%clk 0:00:12.4]} 37... b3 {[%clk
0:00:13.9]} 38. g4 {[%clk 0:00:04.8]} 38... Bf6 {[%clk 0:00:12.9]} 39. h5 {[%clk
0:00:03.9]} 39... gxh5 {[%clk 0:00:12.7]} 40. gxh5 {[%clk 0:00:04.8]} 40... Bg7
{[%clk 0:00:12.2]} 41. Nf3 {[%clk 0:00:02.5]} 41... Rc2 {[%clk 0:00:12.2]} 42.
Rd2 {[%clk 0:00:03.2]} 42... Rc1 {[%clk 0:00:06]} 43. Rg2 {[%clk 0:00:03.5]}
43... Bf8 {[%clk 0:00:05.2]} 44. Rg8 {[%clk 0:00:03.6]} 44... Ke7 {[%clk
0:00:04.7]} 45. Rg2 {[%clk 0:00:02.1]} 45... Bh6 {[%clk 0:00:03.2]} 46. Rg6
{[%clk 0:00:01.7]} 46... Bf8 {[%clk 0:00:02.6]} 47. Ng5 {[%clk 0:00:02.4]} 47...
Rc2 {[%clk 0:00:01.6]} 48. Rxe6+ {[%clk 0:00:03.1]} 48... Kd7 {[%clk 0:00:01.4]}
49. h6 {[%clk 0:00:03.7]} 49... Bxh6 {[%clk 0:00:01.2]} 50. Rxh6 {[%clk
0:00:04.4]} 50... Rxb2 {[%clk 0:00:02]} 51. Rb6 {[%clk 0:00:02.7]} 51... Ra2
{[%clk 0:00:01.9]} 52. f5 {[%clk 0:00:02.7]} 52... Kc7 {[%clk 0:00:02.8]} 53.
Rb4 {[%clk 0:00:02.6]} 53... Rxa3 {[%clk 0:00:03.2]} 54. Kd2 {[%clk 0:00:02.2]}
54... b2 {[%clk 0:00:04.1]} 55. Rxb2 {[%clk 0:00:02.2]} 55... Rg3 {[%clk
0:00:04.2]} 56. Rc2+ {[%clk 0:00:02.3]} 56... Kd6 {[%clk 0:00:03.9]} 57. Ne6
{[%clk 0:00:03.1]} 57... Rg2+ {[%clk 0:00:03.9]} 58. Kd3 {[%clk 0:00:03.8]}
58... Rg3+ {[%clk 0:00:04]} 59. Kd2 {[%clk 0:00:04.2]} 59... a3 {[%clk
0:00:04.7]} 60. Rc8 {[%clk 0:00:02.8]} 60... a2 {[%clk 0:00:04.1]} 61. Ra8
{[%clk 0:00:02.9]} 61... Rf3 {[%clk 0:00:04.5]} 62. Ra6+ {[%clk 0:00:03.2]}
62... Ke7 {[%clk 0:00:04]} 63. Ke2 {[%clk 0:00:03.6]} 63... Rxf5 {[%clk
0:00:03.6]} 64. Nc5 {[%clk 0:00:04.3]} 64... Rh5 {[%clk 0:00:03.3]} 65. Nd3
{[%clk 0:00:02.6]} 65... Rh2+ {[%clk 0:00:02.8]} 66. Nf2 {[%clk 0:00:02.6]}
66... Rh4 {[%clk 0:00:02.5]} 67. Ke3 {[%clk 0:00:03.2]} 67... Rh5 {[%clk
0:00:01.8]} 68. Rxa2 {[%clk 0:00:03.8]} 68... Kf6 {[%clk 0:00:02.5]} 69. Ra6+
{[%clk 0:00:04.2]} 69... Kf5 {[%clk 0:00:03.4]} 70. Rd6 {[%clk 0:00:03.6]} 70...
Rh8 {[%clk 0:00:02.3]} 71. Rxd5+ {[%clk 0:00:04.1]} 71... Kf6 {[%clk 0:00:03.2]}
72. Re5 {[%clk 0:00:05]} 72... Rc8 {[%clk 0:00:03.2]} 73. Ne4+ {[%clk
0:00:05.5]} 73... Kg6 {[%clk 0:00:04.1]} 74. Nc5 {[%clk 0:00:06]} 74... Rf8
{[%clk 0:00:04.3]} 75. Ke4 {[%clk 0:00:06.9]} 75... Rf1 {[%clk 0:00:04.7]} 76.
Nd3 {[%clk 0:00:07.2]} 76... Rd1 {[%clk 0:00:04.6]} 77. Nf4+ {[%clk 0:00:07.4]}
77... Kf7 {[%clk 0:00:05.4]} 78. d5 {[%clk 0:00:07.6]} 78... Kf6 {[%clk
0:00:05.4]} 79. Re6+ {[%clk 0:00:07.6]} 79... Kf7 {[%clk 0:00:06.3]} 80. Ke5
{[%clk 0:00:07.5]} 80... Re1+ {[%clk 0:00:05.7]} 81. Kd6 {[%clk 0:00:08]} 81...
Rf1 {[%clk 0:00:06.4]} 82. Nd3 {[%clk 0:00:08.4]} 82... Rd1 {[%clk 0:00:06.4]}
83. Ne5+ {[%clk 0:00:09.3]} 83... Kf8 {[%clk 0:00:06.8]} 84. Nc6 {[%clk
0:00:10.2]} 84... Re1 {[%clk 0:00:05.7]} 85. Rxe1 {[%clk 0:00:10.3]} 1-0

[Event "Early-Titled-Tuesday-Blitz-February-27-2024"]
[Site "Chess.com"]
[Date "2024.02.27"]
[Round "8"]
[White "Ishowmoves57"]
[Black "arnash_bauyrzhan"]
[Result "1-0"]
[WhiteElo "2175"]
[BlackElo "2285"]
[TimeControl "180+1"]
[EndTime "9:29:36 PST"]
[Termination "Ishowmoves57 won by resignation"]

1. e4 {[%clk 0:02:56]} 1... c5 {[%clk 0:02:59.2]} 2. b3 {[%clk 0:02:51.1]} 2...
d6 {[%clk 0:02:58.1]} 3. Bb2 {[%clk 0:02:41.3]} 3... Nf6 {[%clk 0:02:57.6]} 4.
Nc3 {[%clk 0:02:39.5]} 4... e5 {[%clk 0:02:57]} 5. d3 {[%clk 0:02:37.8]} 5...
Be7 {[%clk 0:02:56.9]} 6. Nd5 {[%clk 0:02:38.4]} 6... Nxd5 {[%clk 0:02:50.8]} 7.
exd5 {[%clk 0:02:31.7]} 7... O-O {[%clk 0:02:50.9]} 8. Ne2 {[%clk 0:02:31]} 8...
f5 {[%clk 0:02:50.4]} 9. f4 {[%clk 0:02:28]} 9... Nd7 {[%clk 0:02:50]} 10. g3
{[%clk 0:02:19.9]} 10... Nf6 {[%clk 0:02:44.2]} 11. fxe5 {[%clk 0:02:12.6]}
11... Nxd5 {[%clk 0:02:43.5]} 12. exd6 {[%clk 0:02:06.3]} 12... Bxd6 {[%clk
0:02:40.5]} 13. Qd2 {[%clk 0:02:05]} 13... f4 {[%clk 0:02:18.4]} 14. gxf4 {[%clk
0:01:31.5]} 14... Nxf4 {[%clk 0:02:17]} 15. O-O-O {[%clk 0:01:18.1]} 15... Nxe2+
{[%clk 0:02:06]} 16. Qxe2 {[%clk 0:01:16.7]} 16... Qg5+ {[%clk 0:02:05.5]} 17.
Kb1 {[%clk 0:01:14.7]} 17... Bg4 {[%clk 0:01:43.5]} 18. Qg2 {[%clk 0:01:06.7]}
18... Rf5 {[%clk 0:00:57.1]} 19. Rg1 {[%clk 0:00:52.7]} 19... Bxd1 {[%clk
0:00:40.7]} 20. Qxg5 {[%clk 0:00:52.4]} 20... Rxg5 {[%clk 0:00:41.1]} 21. Rxg5
{[%clk 0:00:51.9]} 21... g6 {[%clk 0:00:41.6]} 22. Bg2 {[%clk 0:00:32.5]} 22...
Rf8 {[%clk 0:00:34.6]} 23. Bd5+ {[%clk 0:00:31]} 23... Rf7 {[%clk 0:00:34.1]}
24. Be5 {[%clk 0:00:20.4]} 24... Be7 {[%clk 0:00:30.2]} 25. Bxf7+ {[%clk
0:00:18.9]} 25... Kxf7 {[%clk 0:00:30]} 26. Rg1 {[%clk 0:00:19]} 26... Bh5
{[%clk 0:00:26.5]} 27. Rf1+ {[%clk 0:00:17.8]} 27... Ke6 {[%clk 0:00:26.8]} 28.
Bg3 {[%clk 0:00:18.5]} 28... Bf6 {[%clk 0:00:24.6]} 29. Re1+ {[%clk 0:00:18.8]}
29... Kd7 {[%clk 0:00:21.5]} 30. c3 {[%clk 0:00:19.1]} 30... Bg4 {[%clk
0:00:20.3]} 31. Kc2 {[%clk 0:00:17.5]} 31... Bf5 {[%clk 0:00:19.7]} 32. Be5
{[%clk 0:00:16.2]} 32... Bh4 {[%clk 0:00:18.2]} 33. Rd1 {[%clk 0:00:13]} 33...
Ke6 {[%clk 0:00:17.7]} 34. Bg3 {[%clk 0:00:13]} 34... Bg5 {[%clk 0:00:17]} 35.
Re1+ {[%clk 0:00:13.4]} 35... Kd7 {[%clk 0:00:17.4]} 36. Bf2 {[%clk 0:00:10]}
36... b6 {[%clk 0:00:17.4]} 37. b4 {[%clk 0:00:09.1]} 37... cxb4 {[%clk
0:00:16.6]} 38. cxb4 {[%clk 0:00:10]} 38... Be7 {[%clk 0:00:15.9]} 39. a3 {[%clk
0:00:09.8]} 39... Bf6 {[%clk 0:00:13.3]} 40. Rf1 {[%clk 0:00:08.3]} 40... Be5
{[%clk 0:00:13]} 41. Bg3 {[%clk 0:00:08.4]} 41... Bd4 {[%clk 0:00:12.9]} 42. Rf4
{[%clk 0:00:08]} 42... Be3 {[%clk 0:00:13]} 43. Rf3 {[%clk 0:00:07.1]} 43... Bg5
{[%clk 0:00:12.2]} 44. Bf4 {[%clk 0:00:06.8]} 44... Bf6 {[%clk 0:00:11.9]} 45.
Be3 {[%clk 0:00:05.8]} 45... Be7 {[%clk 0:00:12]} 46. Bd4 {[%clk 0:00:05.3]}
46... Bd6 {[%clk 0:00:12.3]} 47. Rf2 {[%clk 0:00:05.5]} 47... Kc6 {[%clk
0:00:11]} 48. Be3 {[%clk 0:00:05.6]} 48... Kd5 {[%clk 0:00:11]} 49. Kc3 {[%clk
0:00:05.6]} 49... Be5+ {[%clk 0:00:11]} 50. d4 {[%clk 0:00:06.2]} 50... Bd6
{[%clk 0:00:11.2]} 51. Bf4 {[%clk 0:00:06.7]} 51... Be7 {[%clk 0:00:11]} 52. Be5
{[%clk 0:00:06.6]} 52... Bh4 {[%clk 0:00:10.8]} 53. Rf3 {[%clk 0:00:06]} 53...
Be1+ {[%clk 0:00:10.6]} 54. Kb3 {[%clk 0:00:05]} 54... Bd2 {[%clk 0:00:10.2]}
55. Rf2 {[%clk 0:00:04.6]} 55... Bc1 {[%clk 0:00:10.2]} 56. Ka2 {[%clk
0:00:03.8]} 56... Be3 {[%clk 0:00:09.5]} 57. Re2 {[%clk 0:00:03.7]} 57... Bg5
{[%clk 0:00:09.9]} 58. Bg7 {[%clk 0:00:02.4]} 58... Be4 {[%clk 0:00:09.5]} 59.
Be5 {[%clk 0:00:02.1]} 59... Bd3 {[%clk 0:00:09.5]} 60. Rf2 {[%clk 0:00:01.9]}
60... Bf5 {[%clk 0:00:10]} 61. Rf1 {[%clk 0:00:01.4]} 61... Bh4 {[%clk
0:00:10.3]} 62. Rc1 {[%clk 0:00:02]} 62... Ke4 {[%clk 0:00:08.4]} 63. Rc7 {[%clk
0:00:02.5]} 63... Be6+ {[%clk 0:00:08.8]} 64. Kb2 {[%clk 0:00:02]} 64... a5
{[%clk 0:00:05.5]} 65. Rxh7 {[%clk 0:00:01.7]} 65... axb4 {[%clk 0:00:04.9]} 66.
Rxh4+ {[%clk 0:00:01.1]} 66... Kd5 {[%clk 0:00:04.6]} 67. axb4 {[%clk 0:00:02]}
67... Bf5 {[%clk 0:00:04.5]} 68. Rh6 {[%clk 0:00:02.5]} 68... Kc4 {[%clk
0:00:05]} 69. h4 {[%clk 0:00:02.9]} 69... b5 {[%clk 0:00:05.7]} 70. h5 {[%clk
0:00:03.2]} 70... Kxb4 {[%clk 0:00:06.3]} 71. hxg6 {[%clk 0:00:03.4]} 71... Be6
{[%clk 0:00:06.4]} 72. g7 {[%clk 0:00:03.9]} 72... Bg8 {[%clk 0:00:06.6]} 73.
Rh8 {[%clk 0:00:04.6]} 73... Kc4 {[%clk 0:00:06.4]} 74. Rxg8 {[%clk 0:00:05]}
74... Kd3 {[%clk 0:00:06.6]} 75. Rc8 {[%clk 0:00:05.9]} 75... b4 {[%clk
0:00:07.3]} 76. g8=Q {[%clk 0:00:06.8]} 76... Kd2 {[%clk 0:00:07.7]} 77. Qb3
{[%clk 0:00:07.5]} 77... Ke1 {[%clk 0:00:07.3]} 78. Qe3+ {[%clk 0:00:07.5]} 1-0

[Event "Early-Titled-Tuesday-Blitz-February-27-2024"]
[Site "Chess.com"]
[Date "2024.02.27"]
[Round "8"]
[White "LeoLV10"]
[Black "Felix-Rose"]
[Result "1/2-1/2"]
[WhiteElo "2469"]
[BlackElo "2269"]
[TimeControl "180+1"]
[EndTime "9:31:39 PST"]
[Termination "Game drawn - insufficient material"]

1. e4 {[%clk 0:03:00.9]} 1... e5 {[%clk 0:02:59.1]} 2. Nf3 {[%clk 0:03:00.1]}
2... Nc6 {[%clk 0:02:59.1]} 3. Bb5 {[%clk 0:03:00.3]} 3... a6 {[%clk 0:02:59.1]}
4. Ba4 {[%clk 0:03:00.8]} 4... Nf6 {[%clk 0:02:59.4]} 5. O-O {[%clk 0:03:00.5]}
5... b5 {[%clk 0:02:59.9]} 6. Bb3 {[%clk 0:03:00.9]} 6... Bc5 {[%clk 0:03:00]}
7. a4 {[%clk 0:03:00.1]} 7... Rb8 {[%clk 0:02:59.9]} 8. c3 {[%clk 0:03:00.3]}
8... d6 {[%clk 0:03:00.1]} 9. d4 {[%clk 0:02:58.7]} 9... Bb6 {[%clk 0:03:00.4]}
10. h3 {[%clk 0:02:57.4]} 10... O-O {[%clk 0:02:58.5]} 11. Re1 {[%clk
0:02:52.8]} 11... Bb7 {[%clk 0:02:55.9]} 12. axb5 {[%clk 0:02:25.4]} 12... axb5
{[%clk 0:02:55.9]} 13. d5 {[%clk 0:02:26.3]} 13... Ne7 {[%clk 0:02:54.5]} 14.
Nbd2 {[%clk 0:02:23.1]} 14... Ng6 {[%clk 0:02:52.5]} 15. Nf1 {[%clk 0:02:22.7]}
15... Qe7 {[%clk 0:02:20.8]} 16. Ng3 {[%clk 0:02:21.1]} 16... Bc8 {[%clk
0:02:10.6]} 17. Bc2 {[%clk 0:02:08.1]} 17... h6 {[%clk 0:02:09.7]} 18. Nf5
{[%clk 0:02:00.9]} 18... Qd7 {[%clk 0:02:01.1]} 19. N3h4 {[%clk 0:01:27.2]}
19... Nxh4 {[%clk 0:01:53.2]} 20. Nxh4 {[%clk 0:01:26.7]} 20... Kh7 {[%clk
0:01:39]} 21. Qf3 {[%clk 0:01:25.1]} 21... Ng8 {[%clk 0:01:35.8]} 22. Bd2 {[%clk
0:01:05.4]} 22... g6 {[%clk 0:01:31.4]} 23. g4 {[%clk 0:00:59.8]} 23... Qd8
{[%clk 0:01:21.9]} 24. Ng2 {[%clk 0:00:56.3]} 24... Ne7 {[%clk 0:01:12.4]} 25.
Ne3 {[%clk 0:00:42.2]} 25... Qd7 {[%clk 0:01:04.6]} 26. Kg2 {[%clk 0:00:40.7]}
26... Qe8 {[%clk 0:00:42.1]} 27. Rh1 {[%clk 0:00:36.9]} 27... Bd7 {[%clk
0:00:42]} 28. Rag1 {[%clk 0:00:36.2]} 28... Bxe3 {[%clk 0:00:31.7]} 29. Qxe3
{[%clk 0:00:35.9]} 29... Ng8 {[%clk 0:00:30.8]} 30. f4 {[%clk 0:00:27.5]} 30...
exf4 {[%clk 0:00:27]} 31. Qxf4 {[%clk 0:00:28.4]} 31... f5 {[%clk 0:00:27.5]}
32. exf5 {[%clk 0:00:16.4]} 32... Qe2+ {[%clk 0:00:23.2]} 33. Kg3 {[%clk
0:00:16.1]} 33... gxf5 {[%clk 0:00:17.4]} 34. Re1 {[%clk 0:00:16]} 34... Qc4
{[%clk 0:00:16.9]} 35. b3 {[%clk 0:00:11.7]} 35... Qxf4+ {[%clk 0:00:16.8]} 36.
Bxf4 {[%clk 0:00:12.6]} 36... Kg7 {[%clk 0:00:15.5]} 37. g5 {[%clk 0:00:11.1]}
37... h5 {[%clk 0:00:12.2]} 38. h4 {[%clk 0:00:11.2]} 38... Rbe8 {[%clk
0:00:12.5]} 39. Bd1 {[%clk 0:00:11.4]} 39... Kg6 {[%clk 0:00:12.6]} 40. c4
{[%clk 0:00:09.3]} 40... bxc4 {[%clk 0:00:12.7]} 41. bxc4 {[%clk 0:00:10.2]}
41... Rb8 {[%clk 0:00:12.5]} 42. Bf3 {[%clk 0:00:09.8]} 42... Rb3 {[%clk
0:00:12.7]} 43. Rb1 {[%clk 0:00:10]} 43... Rfb8 {[%clk 0:00:12.9]} 44. Rxb3
{[%clk 0:00:08.8]} 44... Rxb3 {[%clk 0:00:13.8]} 45. Rc1 {[%clk 0:00:09.6]}
45... Ne7 {[%clk 0:00:14]} 46. c5 {[%clk 0:00:09.4]} 46... Nxd5 {[%clk
0:00:14.2]} 47. cxd6 {[%clk 0:00:09.8]} 47... Nxf4 {[%clk 0:00:14.4]} 48. Kxf4
{[%clk 0:00:09.8]} 48... cxd6 {[%clk 0:00:15.1]} 49. Rd1 {[%clk 0:00:10.3]}
49... Rb4+ {[%clk 0:00:15.1]} 50. Kg3 {[%clk 0:00:10.6]} 50... Rb6 {[%clk
0:00:15.7]} 51. Rd4 {[%clk 0:00:09.6]} 51... Be6 {[%clk 0:00:13.5]} 52. Kf4
{[%clk 0:00:09.2]} 52... d5 {[%clk 0:00:11.9]} 53. Ke5 {[%clk 0:00:08.9]} 53...
Kf7 {[%clk 0:00:11.5]} 54. Bxd5 {[%clk 0:00:08.9]} 54... Rb5 {[%clk 0:00:11.4]}
55. Kd6 {[%clk 0:00:05.1]} 55... Rb6+ {[%clk 0:00:10.7]} 56. Kc5 {[%clk
0:00:04.6]} 56... Rb1 {[%clk 0:00:09.6]} 57. g6+ {[%clk 0:00:04]} 57... Kf6
{[%clk 0:00:09.8]} 58. Bxe6 {[%clk 0:00:04.3]} 58... Kxe6 {[%clk 0:00:10.7]} 59.
Rd6+ {[%clk 0:00:03]} 59... Ke5 {[%clk 0:00:10]} 60. Ra6 {[%clk 0:00:03.1]}
60... Rc1+ {[%clk 0:00:10.2]} 61. Kb4 {[%clk 0:00:03.5]} 61... Rg1 {[%clk
0:00:10.6]} 62. Kc3 {[%clk 0:00:03.4]} 62... f4 {[%clk 0:00:11]} 63. Kd3 {[%clk
0:00:03.8]} 63... Kf5 {[%clk 0:00:11.5]} 64. Ke2 {[%clk 0:00:04.4]} 64... Rxg6
{[%clk 0:00:10.7]} 65. Ra5+ {[%clk 0:00:05.1]} 65... Kg4 {[%clk 0:00:10.8]} 66.
Kf2 {[%clk 0:00:05.8]} 66... Kxh4 {[%clk 0:00:10]} 67. Rf5 {[%clk 0:00:05.9]}
67... Kg4 {[%clk 0:00:09.9]} 68. Ra5 {[%clk 0:00:06.8]} 68... Rd6 {[%clk
0:00:10.1]} 69. Ra2 {[%clk 0:00:07.1]} 69... Rd3 {[%clk 0:00:10.4]} 70. Kg2
{[%clk 0:00:07.3]} 70... Rg3+ {[%clk 0:00:10.7]} 71. Kh2 {[%clk 0:00:07.8]}
71... h4 {[%clk 0:00:11.2]} 72. Rb2 {[%clk 0:00:07.9]} 72... h3 {[%clk
0:00:11.7]} 73. Rc2 {[%clk 0:00:07.5]} 73... Re3 {[%clk 0:00:11.1]} 74. Rb2
{[%clk 0:00:07.5]} 74... Rd3 {[%clk 0:00:10.7]} 75. Rf2 {[%clk 0:00:07.4]} 75...
Re3 {[%clk 0:00:09.1]} 76. Ra2 {[%clk 0:00:07.8]} 76... f3 {[%clk 0:00:08.5]}
77. Ra4+ {[%clk 0:00:07.5]} 77... Kg5 {[%clk 0:00:08.8]} 78. Kxh3 {[%clk
0:00:07.1]} 78... f2+ {[%clk 0:00:05.7]} 79. Kg2 {[%clk 0:00:07.5]} 79... Re1
{[%clk 0:00:05.6]} 80. Kxf2 {[%clk 0:00:07.6]} 80... Re5 {[%clk 0:00:05.9]} 81.
Kg3 {[%clk 0:00:07.7]} 81... Re3+ {[%clk 0:00:06.1]} 82. Kf2 {[%clk 0:00:07.6]}
82... Re5 {[%clk 0:00:06.7]} 83. Kf3 {[%clk 0:00:08.3]} 83... Rf5+ {[%clk
0:00:06.9]} 84. Kg3 {[%clk 0:00:09]} 84... Re5 {[%clk 0:00:07.5]} 85. Rd4 {[%clk
0:00:09.2]} 85... Rf5 {[%clk 0:00:07.7]} 86. Re4 {[%clk 0:00:09.4]} 86... Rd5
{[%clk 0:00:07.9]} 87. Rc4 {[%clk 0:00:09.6]} 87... Rd3+ {[%clk 0:00:07.9]} 88.
Kf2 {[%clk 0:00:10.1]} 88... Kf5 {[%clk 0:00:08.5]} 89. Ke2 {[%clk 0:00:09.8]}
89... Ra3 {[%clk 0:00:08.5]} 90. Rc5+ {[%clk 0:00:09.5]} 90... Ke4 {[%clk
0:00:09]} 91. Rc4+ {[%clk 0:00:10.4]} 91... Kd5 {[%clk 0:00:09.1]} 92. Rc2
{[%clk 0:00:11.1]} 92... Rh3 {[%clk 0:00:08.8]} 93. Rd2+ {[%clk 0:00:12]} 93...
Ke4 {[%clk 0:00:09.1]} 94. Kd1 {[%clk 0:00:12.3]} 94... Rh1+ {[%clk 0:00:08.5]}
95. Kc2 {[%clk 0:00:13]} 95... Rh8 {[%clk 0:00:08.7]} 96. Re2+ {[%clk
0:00:13.2]} 96... Kd4 {[%clk 0:00:09.4]} 97. Re7 {[%clk 0:00:12.8]} 97... Rc8+
{[%clk 0:00:09.2]} 98. Kd2 {[%clk 0:00:13.4]} 98... Rd8 {[%clk 0:00:09.3]} 99.
Rh7 {[%clk 0:00:12.8]} 99... Ke4+ {[%clk 0:00:09.3]} 100. Ke2 {[%clk 0:00:13.4]}
100... Re8 {[%clk 0:00:09.7]} 101. Rh4+ {[%clk 0:00:14]} 101... Kf5+ {[%clk
0:00:09.8]} 102. Kf3 {[%clk 0:00:14.7]} 102... Ra8 {[%clk 0:00:09.4]} 103. Rb4
{[%clk 0:00:14.5]} 103... Ra3+ {[%clk 0:00:09.1]} 104. Kf2 {[%clk 0:00:14.8]}
104... Ke5 {[%clk 0:00:09.8]} 105. Rb5+ {[%clk 0:00:14.6]} 105... Ke4 {[%clk
0:00:10]} 106. Rb4+ {[%clk 0:00:15.3]} 106... Kd3 {[%clk 0:00:10.3]} 107. Rb2
{[%clk 0:00:15.9]} 107... Rc3 {[%clk 0:00:10.4]} 108. Rb8 {[%clk 0:00:15.3]}
108... Ke4 {[%clk 0:00:10]} 109. Re8+ {[%clk 0:00:15]} 109... Kd3 {[%clk
0:00:10.3]} 110. Rd8+ {[%clk 0:00:15.3]} 110... Kc2 {[%clk 0:00:10.7]} 111. Ke2
{[%clk 0:00:15.6]} 111... Kc1 {[%clk 0:00:10.6]} 112. Rd1+ {[%clk 0:00:13.7]}
112... Kb2 {[%clk 0:00:10.7]} 113. Rd8 {[%clk 0:00:14.6]} 113... Rc2+ {[%clk
0:00:11.1]} 114. Kd3 {[%clk 0:00:14.6]} 114... Rc3+ {[%clk 0:00:11.5]} 115. Kd4
{[%clk 0:00:14.7]} 115... Rc1 {[%clk 0:00:11.5]} 116. Rb8+ {[%clk 0:00:15.1]}
116... Kc2 {[%clk 0:00:12.2]} 117. Ke3 {[%clk 0:00:15.4]} 117... Re1+ {[%clk
0:00:11.9]} 118. Kf2 {[%clk 0:00:15.8]} 118... Re7 {[%clk 0:00:12.5]} 119. Rc8+
{[%clk 0:00:15.4]} 119... Kd3 {[%clk 0:00:12.3]} 120. Rd8+ {[%clk 0:00:16]}
120... Ke4 {[%clk 0:00:12.8]} 121. Ra8 {[%clk 0:00:16.2]} 121... Rf7+ {[%clk
0:00:12.9]} 122. Ke2 {[%clk 0:00:16.7]} 122... Re7 {[%clk 0:00:13.5]} 123. Ra4+
{[%clk 0:00:17.2]} 123... Kd5+ {[%clk 0:00:14]} 124. Kd3 {[%clk 0:00:17.5]}
124... Rd7 {[%clk 0:00:14.2]} 125. Ra5+ {[%clk 0:00:14.1]} 125... Kc6+ {[%clk
0:00:14.5]} 126. Kc4 {[%clk 0:00:14.3]} 126... Rc7 {[%clk 0:00:14.3]} 127. Rh5
{[%clk 0:00:14.8]} 127... Rc8 {[%clk 0:00:12.9]} 128. Rc5+ {[%clk 0:00:14.3]}
128... Kb7 {[%clk 0:00:13.1]} 129. Rxc8 {[%clk 0:00:15.2]} 129... Kxc8 {[%clk
0:00:14]} 1/2-1/2

[Event "Early-Titled-Tuesday-Blitz-February-27-2024"]
[Site "Chess.com"]
[Date "2024.02.27"]
[Round "9"]
[White "JaloliddinIlkhomi"]
[Black "FARIZA2018"]
[Result "1/2-1/2"]
[WhiteElo "2754"]
[BlackElo "2597"]
[TimeControl "180+1"]
[EndTime "9:39:58 PST"]
[Termination "Game drawn by repetition"]

1. d4 {[%clk 0:02:59.3]} 1... Nf6 {[%clk 0:02:59.9]} 2. Bf4 {[%clk 0:02:59.6]}
2... d5 {[%clk 0:03:00]} 3. e3 {[%clk 0:03:00.2]} 3... c5 {[%clk 0:03:00.3]} 4.
Nd2 {[%clk 0:02:59.7]} 4... Nc6 {[%clk 0:02:59.6]} 5. c3 {[%clk 0:03:00]} 5...
e6 {[%clk 0:02:57.1]} 6. Ngf3 {[%clk 0:02:59.9]} 6... Bd6 {[%clk 0:02:56.9]} 7.
Bg3 {[%clk 0:03:00.1]} 7... O-O {[%clk 0:02:56.4]} 8. Bd3 {[%clk 0:02:59.3]}
8... Qe7 {[%clk 0:02:53.2]} 9. Ne5 {[%clk 0:02:57.1]} 9... Nd7 {[%clk
0:02:51.7]} 10. Nxd7 {[%clk 0:02:16]} 10... Qxd7 {[%clk 0:02:51.8]} 11. Bxd6
{[%clk 0:02:16.5]} 11... Qxd6 {[%clk 0:02:52.1]} 12. dxc5 {[%clk 0:02:17.1]}
12... Qxc5 {[%clk 0:02:52.4]} 13. Bxh7+ {[%clk 0:02:17.6]} 13... Kxh7 {[%clk
0:02:52.7]} 14. Qh5+ {[%clk 0:02:18.2]} 14... Kg8 {[%clk 0:02:52.9]} 15. Ne4
{[%clk 0:02:18.8]} 15... g6 {[%clk 0:02:41.4]} 16. Qg5 {[%clk 0:02:09]} 16...
Qe7 {[%clk 0:02:38.1]} 17. Nf6+ {[%clk 0:02:09]} 17... Kg7 {[%clk 0:02:38.2]}
18. Nh5+ {[%clk 0:02:09.6]} 18... Kg8 {[%clk 0:02:37.2]} 19. Nf6+ {[%clk
0:02:10]} 19... Kg7 {[%clk 0:02:37.6]} 20. Nh5+ {[%clk 0:02:10.6]} 20... Kg8
{[%clk 0:02:38]} 21. Nf6+ {[%clk 0:02:11.2]} 1/2-1/2